bitfinex/quotes_BTCUSD_20260117
["timestamp","ask_amount","ask_price","bid_price","bid_amount"]
[1768660919472,0.37829176,95504.0,95500.0,0.0104712]
[1768660919782,0.06282568,95503.0,95499.0,0.01047131]
[1768660920000,0.01047087,95503.0,95499.0,0.01047131]
[1768660920393,0.43064585,95504.0,95500.0,0.0104712]
[1768660920532,0.06282527,95503.0,95500.0,0.0104712]
[1768660920983,0.01047087,95503.0,95499.0,0.01047131]
[1768660921704,0.01047109,95501.0,95497.0,0.01047153]
[1768660921859,0.3782922,95500.0,95496.0,0.01047164]
[1768660922281,0.01047153,95497.0,95491.0,0.01047219]
[1768660922600,0.01047153,95497.0,95492.0,0.0523603]
[1768660922832,0.01047164,95496.0,95493.0,0.01047197]
[1768660923465,0.01047076,95504.0,95499.0,0.01047131]
[1768660923665,0.37829209,95501.0,95496.0,0.01047164]
[1768660923870,0.01047131,95499.0,95495.0,0.01047175]
[1768660924672,0.01047131,95499.0,95496.0,0.01047164]
[1768660925029,0.06282796,95499.0,95495.0,0.01047175]
[1768660925237,0.01047153,95497.0,95494.0,0.01047186]
[1768660926040,0.37829297,95493.0,95490.0,0.0104723]
[1768660926242,0.367821,95493.0,95490.0,0.0104723]
[1768660927171,0.37829297,95493.0,95490.0,0.0104723]
[1768660927375,0.01047197,95493.0,95490.0,0.0104723]
[1768660928575,0.01047208,95492.0,95489.0,0.01047241]
[1768660928776,0.01047219,95491.0,95487.0,0.01047262]
[1768660929540,0.01047219,95491.0,95487.0,0.06283572]
[1768660929985,0.01047219,95491.0,95487.0,0.01047262]
[1768660930190,0.0104723,95490.0,95487.0,0.01047262]
[1768660930395,0.01047219,95491.0,95488.0,0.01047252]
[1768660930780,0.01047208,95492.0,95488.0,0.01047252]
[1768660931736,0.0628325,95492.0,95488.0,0.01047252]
[1768660931935,0.01047208,95492.0,95488.0,0.01047252]
[1768660932136,0.01047219,95491.0,95487.0,0.01047262]
[1768660932340,0.06283355,95491.0,95487.0,0.01047262]
[1768660932475,0.01047219,95491.0,95487.0,0.01047262]
[1768660932675,0.01047219,95491.0,95488.0,0.01047252]
[1768660933072,0.01047208,95492.0,95489.0,0.01047241]
[1768660933890,0.01047197,95493.0,95489.0,0.01047241]
[1768660934298,0.01047208,95492.0,95488.0,0.06283511]
[1768660934655,0.01047208,95492.0,95489.0,0.01047241]
[1768660934858,0.06283209,95493.0,95489.0,0.01047241]
[1768660935703,0.0104723,95490.0,95487.0,0.01047262]
[1768660935857,0.01047208,95492.0,95487.0,0.01047262]
[1768660935858,0.01047219,95491.0,95487.0,0.01047262]
[1768660936064,0.01047219,95491.0,95488.0,0.06283508]
[1768660936346,0.01047208,95492.0,95489.0,0.01047241]
[1768660936888,0.01047208,95492.0,95488.0,0.01047252]
[1768660937287,0.01047208,95492.0,95489.0,0.01047241]
[1768660937524,0.01047197,95493.0,95489.0,0.06283425]
[1768660937723,0.01047197,95493.0,95489.0,0.01047241]
[1768660938592,0.01047186,95494.0,95491.0,0.01047219]
[1768660938724,0.01047164,95496.0,95490.0,0.0104723]
[1768660938932,0.37829264,95496.0,95493.0,0.01047197]
[1768660939580,0.37829286,95494.0,95489.0,0.01047241]
[1768660940382,0.01047197,95493.0,95490.0,0.0104723]
[1768660940587,0.37829286,95494.0,95491.0,0.01047219]
[1768660941189,0.367821,95494.0,95491.0,0.01047219]
[1768660941733,0.37829286,95494.0,95491.0,0.01047219]
[1768660943300,0.06283122,95494.0,95490.0,0.0104723]
[1768660943670,0.01047197,95493.0,95490.0,0.0104723]
[1768660945978,0.01047197,95493.0,95490.0,0.06283374]
[1768660946188,0.01047186,95494.0,95491.0,0.06283314]
[1768660946386,0.01047186,95494.0,95491.0,0.01047219]
[1768660946860,0.01047175,95495.0,95492.0,0.01047208]
[1768660947445,0.39535486,95496.0,95492.0,0.06283236]
[1768660947774,0.38488322,95496.0,95493.0,0.01047197]
[1768660950114,0.40749559,95496.0,95493.0,0.01047197]
[1768660951571,0.47032561,95496.0,95492.0,0.01047208]
[1768660951772,0.02261237,95495.0,95492.0,0.01047208]
[1768660952107,0.03308412,95495.0,95492.0,0.01047208]
[1768660952473,0.01047186,95494.0,95490.0,0.0104723]
[1768660952999,0.01047197,95493.0,95489.0,0.01047241]
[1768660953318,0.01047186,95494.0,95490.0,0.0104723]
[1768660953521,0.01047197,95493.0,95489.0,0.01047241]
[1768660953922,0.01047197,95493.0,95490.0,0.0104723]
[1768660954150,0.01047186,95494.0,95490.0,0.0104723]
[1768660954337,0.03308412,95495.0,95491.0,0.01047219]
[1768660954543,0.03308412,95495.0,95491.0,0.0104269]
[1768660954835,0.01047186,95494.0,95490.0,0.0104723]
[1768660955464,0.06283119,95494.0,95490.0,0.0104723]
[1768660955666,0.01047186,95494.0,95490.0,0.0104723]
[1768660956336,0.01047197,95493.0,95490.0,0.0104723]
[1768660956906,0.01047197,95493.0,95489.0,0.01047241]
[1768660957111,0.062832,95493.0,95489.0,0.01047241]
[1768660957311,0.01047197,95493.0,95490.0,0.0104723]
[1768660957521,0.01047197,95493.0,95488.0,0.01047252]
[1768660958943,0.01047197,95493.0,95488.0,0.06283506]
[1768660959141,0.01047197,95493.0,95489.0,0.05236203]
[1768660959341,0.01047197,95493.0,95489.0,0.06283444]
[1768660959560,0.01047186,95494.0,95490.0,0.0104723]
[1768660959966,0.01047197,95493.0,95489.0,0.01047241]
[1768660960127,0.01047197,95493.0,95489.0,0.06283433]
[1768660960544,0.01047208,95492.0,95488.0,0.01047252]
[1768660962151,0.01047219,95491.0,95486.0,0.01047273]
[1768660962333,0.06283353,95491.0,95486.0,0.01047273]
[1768660962796,0.06283353,95491.0,95486.0,0.06283642]
[1768660963085,0.01047241,95489.0,95486.0,0.01047273]
[1768660963538,0.0104723,95490.0,95486.0,0.06283635]
[1768660963712,0.06283398,95490.0,95486.0,0.01047273]
[1768660963868,0.0104723,95490.0,95486.0,0.01047273]
[1768660964262,0.0104723,95490.0,95486.0,0.06283631]
[1768660964487,0.0104723,95490.0,95487.0,0.01047262]
[1768660964892,0.0104723,95490.0,95486.0,0.01047273]
[1768660965088,0.06283387,95490.0,95486.0,0.01047273]
[1768660965309,0.0104723,95490.0,95486.0,0.01047273]
[1768660965727,0.06283381,95490.0,95486.0,0.01047273]
[1768660966290,0.0104723,95490.0,95486.0,0.01047273]
[1768660966760,0.06283383,95490.0,95486.0,0.01047273]
[1768660966984,0.06283464,95489.0,95485.0,0.01047284]
[1768660967181,0.01047252,95488.0,95485.0,0.01047284]
[1768660967604,0.01047252,95488.0,95485.0,0.06283706]
[1768660967810,0.01047208,95492.0,95487.0,0.01047262]
[1768660968068,0.05236101,95491.0,95487.0,0.01047262]
[1768660968199,0.0104723,95490.0,95485.0,0.01047284]
[1768660968408,0.06283383,95490.0,95485.0,0.01047284]
[1768660969071,0.01047241,95489.0,95485.0,0.01042756]
[1768660969425,0.01047241,95489.0,95486.0,0.01047273]
[1768660969991,0.0104723,95490.0,95486.0,0.06283633]
[1768660970331,0.0104723,95490.0,95487.0,0.01047262]
[1768660970750,0.01047219,95491.0,95487.0,0.06283575]
[1768660971062,0.01047219,95491.0,95488.0,0.01047252]
[1768660971446,0.0104723,95490.0,95480.0,0.01047339]
[1768660971653,0.01047273,95486.0,95483.0,0.13735306]
[1768660972428,0.01047273,95486.0,95482.0,0.05236543]
[1768660972429,0.38096672,95486.0,95482.0,0.01047317]
[1768660972629,0.38096672,95486.0,95478.0,0.01047361]
[1768660972630,0.38096716,95482.0,95478.0,0.01047361]
[1768660972847,0.37049399,95482.0,95478.0,0.06290088]
[1768660973744,0.37049399,95482.0,95479.0,0.05236743]
[1768660974171,0.37049399,95482.0,95479.0,0.0104735]
[1768660974804,0.37049399,95482.0,95479.0,0.06284052]
[1768660975002,0.01047295,95484.0,95481.0,0.01047328]
[1768660975198,0.01047295,95484.0,95480.0,0.01047339]
[1768660975534,0.01047295,95484.0,95480.0,0.06284025]
[1768660975873,0.38096683,95485.0,95481.0,0.01047328]
[1768660976189,0.37049399,95485.0,95482.0,0.01047317]
[1768660977185,0.37049399,95485.0,95482.0,0.06283859]
[1768660978170,0.37049399,95485.0,95482.0,0.01047317]
[1768660978602,0.38096683,95485.0,95481.0,0.01047328]
[1768660978808,0.38096683,95485.0,95482.0,0.01047317]
[1768660979019,0.37049399,95485.0,95482.0,0.06283897]
[1768660979578,0.37049399,95485.0,95482.0,0.01047317]
[1768660980058,0.37049399,95485.0,95482.0,0.06283903]
[1768660980646,0.37049399,95485.0,95481.0,0.01047328]
[1768660980844,0.37049399,95485.0,95482.0,0.01047317]
[1768660981054,0.01047273,95486.0,95483.0,0.01047306]
[1768660981526,0.01047273,95486.0,95481.0,0.01047328]
[1768660981730,0.01047284,95485.0,95481.0,0.01047328]
[1768660981930,0.01047273,95486.0,95482.0,0.01047317]
[1768660982206,0.01047273,95486.0,95483.0,0.01047306]
[1768660982623,0.01047273,95486.0,95482.0,0.01047317]
[1768660982846,0.01047295,95484.0,95481.0,0.01047328]
[1768660983062,0.01047317,95482.0,95479.0,0.0104735]
[1768660983588,0.06283925,95482.0,95478.0,5.931e-05]
[1768660983815,0.01047317,95482.0,95478.0,0.01053292]
[1768660984462,0.06283944,95482.0,95478.0,0.01053292]
[1768660984666,0.01047306,95483.0,95479.0,0.0104735]
[1768660984872,0.01047306,95483.0,95479.0,0.06284093]
[1768660985079,0.01047317,95482.0,95479.0,0.0104735]
[1768660985282,0.01047306,95483.0,95480.0,0.01047339]
[1768660985710,0.01047295,95484.0,95480.0,0.06284035]
[1768660986729,0.01047295,95484.0,95481.0,0.01047328]
[1768660988215,0.01047295,95484.0,95480.0,0.06284032]
[1768660988415,0.01047295,95484.0,95481.0,0.01047328]
[1768660988793,0.01047284,95485.0,95482.0,0.01047317]
[1768660989044,0.01047284,95485.0,95482.0,0.0104279]
[1768660990243,0.01047284,95485.0,95481.0,0.01047328]
[1768660990409,0.01047295,95484.0,95481.0,0.01047328]
[1768660991255,0.0628378,95484.0,95480.0,0.01047339]
[1768660991458,0.01047306,95483.0,95480.0,0.01047339]
[1768660991643,0.06283841,95483.0,95479.0,0.0104735]
[1768660991833,0.06283944,95482.0,95478.0,0.01053292]
[1768660992092,0.01047317,95482.0,95478.0,0.01053292]
[1768660992230,0.01047317,95482.0,95478.0,0.06290096]
[1768660992653,0.01047317,95482.0,95478.0,0.01053292]
[1768660992988,0.06283843,95483.0,95479.0,0.0104735]
[1768660993125,0.01047306,95483.0,95479.0,0.0104735]
[1768660993530,0.0628386,95483.0,95479.0,0.0104735]
[1768660994224,0.01047317,95482.0,95478.0,0.01053292]
[1768660994643,0.01047317,95482.0,95479.0,0.0104735]
[1768660994834,0.06283911,95482.0,95479.0,0.0104735]
[1768660995804,0.01047317,95482.0,95479.0,0.0104735]
[1768660997163,0.01047317,95482.0,95479.0,0.01042824]
[1768660997368,0.01047317,95482.0,95479.0,0.01038298]
[1768660998134,0.01047306,95483.0,95480.0,0.01047339]
[1768660998334,0.01047306,95483.0,95480.0,0.01042813]
[1768661000542,0.01047306,95483.0,95479.0,0.01038298]
[1768661001277,0.01047317,95482.0,95479.0,0.01038298]
[1768661002481,0.06283907,95482.0,95479.0,0.01038298]
[1768661002687,0.06283907,95482.0,95478.0,0.01053292]
[1768661004460,0.01047328,95481.0,95478.0,0.01053292]
[1768661005249,0.06283978,95481.0,95478.0,0.01053292]
[1768661005583,0.01047328,95481.0,95478.0,0.01053292]
[1768661006286,0.01047306,95483.0,95479.0,0.06284061]
[1768661006481,0.35957869,95484.0,95480.0,0.06284018]
[1768661006682,0.35957869,95484.0,95481.0,0.01047328]
[1768661007003,0.0628379,95484.0,95480.0,0.01038287]
[1768661007503,0.01047295,95484.0,95480.0,0.01038287]
[1768661007899,0.06283778,95484.0,95480.0,0.01038287]
[1768661008224,0.01047306,95483.0,95480.0,0.01038287]
[1768661008653,0.06283845,95483.0,95479.0,0.0104735]
[1768661009213,0.01047306,95483.0,95479.0,0.06284081]
[1768661009449,0.01047306,95483.0,95480.0,0.01047339]
[1768661010348,0.01047317,95482.0,95479.0,0.0104735]
[1768661010552,0.01047306,95483.0,95479.0,0.0104735]
[1768661010756,0.01047317,95482.0,95479.0,0.0104735]
[1768661012109,0.01047306,95483.0,95479.0,0.06284096]
[1768661012315,0.01047306,95483.0,95480.0,0.01047339]
[1768661014946,0.01047306,95483.0,95479.0,0.0104735]
[1768661015157,0.01047306,95483.0,95480.0,0.01047339]
[1768661015560,0.01047306,95483.0,95479.0,0.0104735]
[1768661016783,0.01047317,95482.0,95479.0,0.0104735]
[1768661016992,0.06283924,95482.0,95478.0,0.01053292]
[1768661017191,0.01047262,95487.0,95479.0,0.0104735]
[1768661017398,0.03309179,95486.0,95478.0,0.05242713]
[1768661017741,0.02261906,95485.0,95481.0,0.05236626]
[1768661018065,0.01047295,95484.0,95479.0,0.0104735]
[1768661018392,0.01047295,95484.0,95480.0,0.01047339]
[1768661018810,0.01047295,95484.0,95480.0,0.06284027]
[1768661019010,0.01047295,95484.0,95480.0,0.01047339]
[1768661019455,0.01047295,95484.0,95480.0,0.06284021]
[1768661020293,0.01047295,95484.0,95480.0,0.01047339]
[1768661020953,0.01047306,95483.0,95480.0,0.01047339]
[1768661022346,0.01047284,95485.0,95481.0,0.01047328]
[1768661022526,0.02261965,95484.0,95481.0,0.01047328]
[1768661022721,0.02261965,95484.0,95481.0,0.06283971]
[1768661022929,0.01047284,95485.0,95482.0,0.01047317]
[1768661023271,0.02261965,95484.0,95482.0,0.01047317]
[1768661023472,0.01047284,95485.0,95482.0,0.01047317]
[1768661023621,0.02261959,95484.0,95482.0,0.01047317]
[1768661023835,0.01047273,95486.0,95482.0,0.06283875]
[1768661024036,0.02261959,95485.0,95482.0,0.06283875]
[1768661024218,0.02261959,95484.0,95482.0,0.06283875]
[1768661024417,0.01047273,95486.0,95482.0,0.06283875]
[1768661024633,0.02261953,95485.0,95482.0,0.06283875]
[1768661024859,0.02261953,95484.0,95482.0,0.06283875]
[1768661025060,0.01047273,95486.0,95482.0,0.06283875]
[1768661025230,0.02261953,95485.0,95482.0,0.06283875]
[1768661025432,0.02261953,95484.0,95482.0,0.01047317]
[1768661025660,0.01047284,95485.0,95482.0,0.01047317]
[1768661025857,0.01047284,95485.0,95481.0,0.01047328]
[1768661025858,0.03309242,95484.0,95481.0,0.01047328]
[1768661026200,0.01047295,95484.0,95481.0,0.01047328]
[1768661027193,0.01047295,95484.0,95481.0,0.06283965]
[1768661027541,0.01047284,95485.0,95481.0,0.06283965]
[1768661027740,0.02261944,95484.0,95481.0,0.06283965]
[1768661027938,0.01047262,95487.0,95483.0,0.01047306]
[1768661028144,0.02261945,95486.0,95483.0,0.06283838]
[1768661028360,0.02261945,95485.0,95484.0,0.05236471]
[1768661029238,0.02261945,95485.0,95483.0,0.06283826]
[1768661029445,0.01047262,95487.0,95483.0,0.06283826]
[1768661029578,0.02261934,95486.0,95483.0,0.06283826]
[1768661029774,0.02261934,95485.0,95483.0,0.06283826]
[1768661029970,0.01047262,95487.0,95484.0,0.01047295]
[1768661030166,0.02261934,95486.0,95484.0,0.01047295]
[1768661030370,0.02261934,95485.0,95482.0,0.01047317]
[1768661030598,0.01047262,95487.0,95483.0,0.01047306]
[1768661030795,0.02261928,95486.0,95483.0,0.01047306]
[1768661031001,0.02261928,95485.0,95483.0,0.01047306]
[1768661031213,0.01047262,95487.0,95483.0,0.01047306]
[1768661031416,0.02261931,95486.0,95483.0,0.01047306]
[1768661031625,0.02261931,95485.0,95482.0,0.01047317]
[1768661031797,0.06283654,95486.0,95482.0,0.01047317]
[1768661032133,0.02261931,95485.0,95482.0,0.01047317]
[1768661032296,0.01047284,95485.0,95481.0,0.01047328]
[1768661033795,0.01047295,95484.0,95480.0,0.01047339]
[1768661034750,0.01047306,95483.0,95480.0,0.01047339]
[1768661035396,0.01047295,95484.0,95481.0,0.01047328]
[1768661036687,0.01047295,95484.0,95480.0,0.01047339]
[1768661038029,0.01047295,95484.0,95481.0,0.01047328]
[1768661038326,0.01047306,95483.0,95480.0,0.01047339]
[1768661038455,0.06283841,95483.0,95478.0,0.06290061]
[1768661038889,0.01047306,95483.0,95479.0,0.0104735]
[1768661039291,0.01047317,95482.0,95479.0,0.0104735]
[1768661041911,0.38737706,95482.0,95479.0,0.0104735]
[1768661042141,0.01047361,95478.0,95470.0,0.17925224]
[1768661042310,0.37690389,95477.0,95470.0,0.12688]
[1768661042579,0.0104735,95479.0,95470.0,0.12688]
[1768661042580,0.37331124,95474.0,95470.0,0.12688]
[1768661042789,0.37331124,95474.0,95471.0,0.01047438]
[1768661043124,0.37331124,95469.0,95467.0,0.03142343]
[1768661043487,0.37035931,95465.0,95462.0,0.0001585]
[1768661043641,0.37035931,95465.0,95462.0,0.01063387]
[1768661043642,0.37040649,95465.0,95462.0,0.01063387]
[1768661044364,4.718e-05,95465.0,95463.0,0.05237628]
[1768661044790,4.718e-05,95465.0,95462.0,0.01063387]
[1768661045125,4.718e-05,95465.0,95462.0,0.0630103]
[1768661045308,0.01052222,95465.0,95462.0,0.0001585]
[1768661045923,0.38083567,95453.0,95430.0,2.516523]
[1768661046130,0.01047701,95447.0,95442.0,0.01047756]
[1768661046330,0.01047712,95446.0,95438.0,0.010478]
[1768661046571,0.06286279,95446.0,95440.0,0.05238877]
[1768661046771,0.06286279,95446.0,95436.0,0.01047822]
[1768661046772,0.01047723,95445.0,95437.0,0.01047811]
[1768661046976,0.01047723,95445.0,95436.0,0.01047822]
[1768661046977,0.05239387,95431.0,95430.0,1.66215237]
[1768661047201,0.37690389,95431.0,95430.0,0.63037325]
[1768661048202,0.37695104,95431.0,95430.0,0.63037325]
[1768661049382,0.42934491,95431.0,95430.0,0.63037325]
[1768661050403,0.42934491,95431.0,95430.0,0.15507358]
[1768661050807,0.37695104,95431.0,95430.0,0.15507358]
[1768661051015,0.42934491,95431.0,95430.0,0.15507358]
[1768661051900,0.37695104,95431.0,95430.0,0.15507358]
[1768661052283,0.42934491,95431.0,95430.0,1e-08]
[1768661052611,0.42929886,95429.0,95428.0,1e-08]
[1768661054083,0.43029886,95429.0,95428.0,1e-08]
[1768661054303,0.37790389,95429.0,95428.0,1e-08]
[1768661054997,0.43029886,95429.0,95428.0,1e-08]
[1768661055393,0.37790389,95429.0,95428.0,1e-08]
[1768661055737,0.43029886,95429.0,95428.0,1e-08]
[1768661056103,0.37690389,95429.0,95428.0,1e-08]
[1768661056503,0.37790389,95429.0,95428.0,1e-08]
[1768661056973,0.37690389,95429.0,95428.0,1e-08]
[1768661058921,0.01047811,95437.0,95430.0,0.35675881]
[1768661059119,0.010478,95438.0,95433.0,0.01047855]
[1768661059310,0.010478,95438.0,95433.0,0.35675848]
[1768661059472,0.06286541,95442.0,95434.0,0.01047844]
[1768661059675,0.0523874,95443.0,95434.0,0.01047844]
[1768661059676,0.01047701,95447.0,95438.0,0.010478]
[1768661059922,0.01047723,95445.0,95439.0,0.01047789]
[1768661060124,0.06286218,95447.0,95440.0,0.01047778]
[1768661060125,0.01047712,95446.0,95440.0,0.01047778]
[1768661060328,0.01047712,95446.0,95437.0,0.01047811]
[1768661060528,0.01047712,95446.0,95438.0,0.010478]
[1768661060704,0.01047734,95444.0,95439.0,0.01047789]
[1768661061817,0.01047734,95444.0,95436.0,0.01047822]
[1768661062020,0.01047734,95444.0,95438.0,0.010478]
[1768661062220,0.01047745,95443.0,95438.0,0.010478]
[1768661062420,0.01047756,95442.0,95437.0,0.01047811]
[1768661062818,0.01047756,95442.0,95438.0,0.010478]
[1768661063217,0.01047745,95443.0,95438.0,0.010478]
[1768661063800,0.01047734,95444.0,95437.0,0.01047811]
[1768661064010,0.01047745,95443.0,95438.0,0.010478]
[1768661064207,0.01047723,95445.0,95438.0,0.010478]
[1768661064449,0.01047657,95451.0,95435.0,0.25269236]
[1768661064646,0.01047833,95435.0,95430.0,8.408e-05]
[1768661064827,0.01047855,95433.0,95430.0,8.408e-05]
[1768661065332,0.06287134,95433.0,95430.0,8.408e-05]
[1768661065530,0.05239387,95431.0,95430.0,8.408e-05]
[1768661072991,0.05239387,95431.0,95245.0,0.18807015]
[1768661072992,0.01048108,95410.0,95393.0,0.0004]
[1768661073211,0.01048075,95413.0,95406.0,0.01048152]
[1768661073212,0.30505818,95413.0,95406.0,0.01048152]
[1768661073420,0.01048119,95409.0,95404.0,0.52025748]
[1768661073616,0.06284854,95411.0,95404.0,0.53073922]
[1768661073819,0.01048119,95409.0,95404.0,0.52025748]
[1768661073991,0.01048108,95410.0,95404.0,0.53073922]
[1768661074192,0.01048119,95409.0,95404.0,0.53073922]
[1768661074398,0.01048152,95406.0,95387.0,0.39329748]
[1768661074577,0.05241146,95399.0,95397.0,0.00022997]
[1768661074779,0.052412,95398.0,95397.0,0.00022997]
[1768661075208,0.05241254,95397.0,95396.0,0.0004]
[1768661075384,0.05241254,95397.0,95396.0,0.00054169]
[1768661076085,0.05241364,95395.0,95394.0,1e-08]
[1768661076288,0.0104825,95397.0,95394.0,1e-08]
[1768661076289,0.05241309,95396.0,95394.0,6.438e-05]
[1768661076488,0.05241364,95395.0,95394.0,6.438e-05]
[1768661076965,0.0104825,95397.0,95394.0,6.438e-05]
[1768661077131,0.0104825,95397.0,95394.0,6.437e-05]
[1768661077332,0.0104825,95397.0,95395.0,0.127]
[1768661079512,0.06289545,95397.0,95395.0,0.127]
[1768661079646,0.0104825,95397.0,95395.0,0.127]
[1768661080477,0.0524087,95404.0,95397.0,0.01]
[1768661080697,0.01048218,95400.0,95398.0,0.39329748]
[1768661080896,0.01048207,95401.0,95398.0,0.39329748]
[1768661081931,0.06289267,95401.0,95398.0,0.39329748]
[1768661082133,0.06289244,95401.0,95398.0,0.39329748]
[1768661082349,0.01048207,95401.0,95398.0,0.39329748]
[1768661082541,0.01048174,95404.0,95400.0,0.39329748]
[1768661082685,0.01048152,95406.0,95400.0,0.40377966]
[1768661082886,0.01048174,95404.0,95400.0,0.40377966]
[1768661083084,0.01048152,95406.0,95402.0,0.39329748]
[1768661083293,0.01048141,95407.0,95402.0,0.39329748]
[1768661083493,0.01048163,95405.0,95402.0,0.39329748]
[1768661083694,0.0104813,95408.0,95402.0,0.39329748]
[1768661083890,0.01048141,95407.0,95402.0,0.40377944]
[1768661084091,0.01048119,95409.0,95404.0,0.39329748]
[1768661084389,0.06336226,95411.0,95406.0,0.39329748]
[1768661084594,0.01048119,95409.0,95406.0,0.39329748]
[1768661085319,0.06288719,95409.0,95406.0,0.39329748]
[1768661085516,0.01048119,95409.0,95406.0,0.39329748]
[1768661085716,0.01095695,95411.0,95406.0,0.39329748]
[1768661086121,0.00047598,95411.0,95406.0,0.403779]
[1768661086336,0.01095695,95411.0,95407.0,0.01048141]
[1768661086585,0.00047598,95411.0,95408.0,0.0104813]
[1768661087293,0.00047598,95411.0,95407.0,0.01048141]
[1768661087767,0.0104802,95418.0,95411.0,0.45618321]
[1768661088048,0.01048009,95419.0,95414.0,0.39329748]
[1768661088247,0.08541033,95420.0,95415.0,0.127]
[1768661088452,0.01048009,95419.0,95415.0,0.127]
[1768661088684,0.0628799,95420.0,95417.0,0.01048031]
[1768661088685,0.02253043,95420.0,95417.0,0.01048031]
[1768661088854,0.02253043,95422.0,95418.0,0.0104802]
[1768661089063,0.01047965,95423.0,95418.0,0.0104802]
[1768661089064,0.03301008,95423.0,95418.0,0.0104802]
[1768661089216,0.02253043,95425.0,95420.0,0.01047998]
[1768661089406,0.03300964,95427.0,95422.0,0.01047976]
[1768661089605,0.02253043,95426.0,95423.0,0.11236293]
[1768661089884,0.02253043,95426.0,95423.0,0.12284258]
[1768661090119,0.0002104,95428.0,95423.0,0.12284258]
[1768661090319,0.03321993,95428.0,95423.0,0.12284258]
[1768661090654,0.01047932,95426.0,95423.0,0.11236293]
[1768661090851,0.01047921,95427.0,95423.0,0.12284258]
[1768661091232,0.01116193,95428.0,95423.0,0.12284258]
[1768661091233,0.00068283,95428.0,95424.0,0.05239764]
[1768661091908,0.00068283,95428.0,95424.0,0.01047954]
[1768661092120,0.01116193,95428.0,95423.0,0.12284258]
[1768661092553,0.01116193,95428.0,95424.0,0.01047954]
[1768661092554,0.00068283,95428.0,95424.0,0.01047954]
[1768661092773,0.01116193,95428.0,95424.0,0.01047954]
[1768661093183,0.00068283,95428.0,95425.0,0.01047943]
[1768661093406,0.00068283,95428.0,95424.0,0.01047954]
[1768661093634,0.00068283,95428.0,95425.0,0.01047943]
[1768661094025,0.02253043,95433.0,95425.0,0.01047943]
[1768661094026,0.02253043,95433.0,95430.0,0.41373822]
[1768661094277,0.02253043,95435.0,95431.0,0.127]
[1768661094403,0.02253043,95434.0,95431.0,0.127]
[1768661094611,0.02253043,95433.0,95431.0,0.127]
[1768661095889,0.03300887,95434.0,95422.0,0.01047976]
[1768661096092,0.01047888,95430.0,95426.0,0.01047932]
[1768661096546,0.01047899,95429.0,95425.0,0.01047943]
[1768661096719,0.02255283,95437.0,95434.0,0.41373778]
[1768661096892,0.01047778,95440.0,95436.0,0.40306522]
[1768661097090,0.01068807,95441.0,95435.0,0.13747833]
[1768661097297,0.3853278,95434.0,95431.0,0.01047877]
[1768661097498,0.01047811,95437.0,95429.0,0.13747899]
[1768661097741,0.01047833,95435.0,95430.0,0.01047888]
[1768661097931,0.01047855,95433.0,95429.0,0.13747899]
[1768661098140,0.01047844,95434.0,95430.0,0.01047888]
[1768661099096,0.01047855,95433.0,95430.0,0.01047888]
[1768661099320,0.01048042,95416.0,95404.0,0.40325934]
[1768661099557,0.01048075,95413.0,95404.0,0.00047243]
[1768661099766,0.01048119,95409.0,95404.0,0.01095417]
[1768661099993,0.01048119,95409.0,95405.0,0.01048163]
[1768661100453,0.01048119,95409.0,95401.0,0.05241033]
[1768661100454,0.01048185,95403.0,95397.0,0.0106929]
[1768661100670,0.01048174,95404.0,95400.0,0.01048218]
[1768661100890,0.01048163,95405.0,95401.0,0.01048207]
[1768661101111,0.01048053,95415.0,95411.0,0.40325934]
[1768661101553,0.01048042,95416.0,95411.0,0.40325934]
[1768661101780,0.01048064,95414.0,95411.0,0.40325934]
[1768661101991,0.01048097,95411.0,95403.0,0.41374119]
[1768661102210,0.127,95421.0,95410.0,0.01048108]
[1768661102211,0.01048053,95415.0,95410.0,0.01048108]
[1768661102430,0.01048042,95416.0,95410.0,0.01048108]
[1768661102644,0.01048053,95415.0,95410.0,0.01048108]
[1768661102896,0.01048031,95417.0,95412.0,0.01048086]
[1768661103109,0.01047976,95422.0,95402.0,0.127]
[1768661103110,0.01047998,95420.0,95413.0,0.40325934]
[1768661103496,0.05240321,95414.0,95413.0,0.40325934]
[1768661103696,0.05240321,95414.0,95408.0,0.41374064]
[1768661103893,0.052404,95413.0,95408.0,0.41374064]
[1768661104311,0.06288372,95415.0,95408.0,0.41374064]
[1768661104525,0.0524033,95414.0,95409.0,0.01048119]
[1768661104702,0.01048075,95413.0,95410.0,0.127]
[1768661104905,0.06288458,95413.0,95410.0,0.127]
[1768661105101,0.01048075,95413.0,95410.0,0.127]
[1768661106509,0.0104802,95418.0,95410.0,0.127]
[1768661106741,0.01048042,95416.0,95411.0,0.01048097]
[1768661106952,0.01048042,95416.0,95411.0,0.13748097]
[1768661107184,0.01048053,95415.0,95411.0,0.13748097]
[1768661107830,0.05240376,95413.0,95411.0,0.127]
[1768661108039,0.01048064,95414.0,95411.0,0.127]
[1768661108271,0.01048119,95409.0,95399.0,0.01048229]
[1768661108466,0.01048119,95409.0,95403.0,0.01048185]
[1768661108669,0.0104813,95408.0,95404.0,0.01048174]
[1768661109822,0.01048141,95407.0,95403.0,0.01048185]
[1768661110028,0.01048152,95406.0,95402.0,0.01048196]
[1768661110580,0.01048163,95405.0,95401.0,0.01048207]
[1768661111276,0.01048174,95404.0,95401.0,0.01048207]
[1768661111652,0.01048185,95403.0,95399.0,0.13748229]
[1768661111973,0.06289138,95403.0,95399.0,0.127]
[1768661112297,0.01048174,95404.0,95399.0,0.127]
[1768661112523,0.06288962,95406.0,95399.0,0.127]
[1768661112524,0.01048152,95406.0,95399.0,0.127]
[1768661112743,0.01048152,95406.0,95400.0,0.05241037]
[1768661112979,0.06288784,95408.0,95403.0,0.01048185]
[1768661113408,0.01048141,95407.0,95403.0,0.01048185]
[1768661115668,0.01048152,95406.0,95402.0,0.01048196]
[1768661117643,0.01048152,95406.0,95403.0,0.01048185]
[1768661117857,0.01048152,95406.0,95402.0,0.01048196]
[1768661118968,0.01048152,95406.0,95403.0,0.01048185]
[1768661119181,0.01048141,95407.0,95403.0,0.01048185]
[1768661120881,0.01048152,95406.0,95403.0,0.01048185]
[1768661121065,0.01048152,95406.0,95402.0,0.01048196]
[1768661122069,0.01048163,95405.0,95402.0,0.01048196]
[1768661122242,0.01048152,95406.0,95402.0,0.01048196]
[1768661123018,0.0104813,95408.0,95405.0,0.01048163]
[1768661123267,0.0104813,95408.0,95404.0,0.01048174]
[1768661123711,0.06288715,95409.0,95405.0,0.01048163]
[1768661123928,0.0104813,95408.0,95405.0,0.01048163]
[1768661126835,0.0104813,95408.0,95403.0,0.01048185]
[1768661126836,0.01048141,95407.0,95403.0,0.01048185]
[1768661127265,0.06288846,95407.0,95403.0,0.01048185]
[1768661127905,0.01048141,95407.0,95403.0,0.06289107]
[1768661128190,0.01048141,95407.0,95403.0,0.01048185]
[1768661128409,0.03306015,95407.0,95403.0,0.01048185]
[1768661129180,0.02257874,95406.0,95403.0,0.01048185]
[1768661129492,0.02257874,95405.0,95403.0,0.01048185]
[1768661129697,0.02257874,95404.0,95403.0,0.01048185]
[1768661130335,0.02257874,95404.0,95402.0,0.01048196]
[1768661130336,0.02257874,95404.0,95401.0,0.01048207]